bitfinex/quotes_SOLUSD_20240604
["timestamp","ask_amount","ask_price","bid_price","bid_amount"]
[1717511601732,2.2135,167.16,167.11,2.214]
[1717511601893,6.5488,167.17,167.13,2.2138]
[1717511602230,2.2132,167.18,167.14,2.2137]
[1717511602529,2.2134,167.16,167.11,2.214]
[1717511603213,2.2134,167.16,167.12,2.2139]
[1717511603586,2.2133,167.17,167.12,2.2139]
[1717511603982,2.2134,167.16,167.12,2.2139]
[1717511604527,2.2133,167.17,167.12,2.2139]
[1717511605287,6.0002,167.19,167.09,8.8574]
[1717511605645,2.2129,167.2,167.15,2.2135]
[1717511606213,2.2131,167.19,167.14,2.2136]
[1717511606387,2.2132,167.18,167.14,2.2136]
[1717511606590,2.2132,167.18,167.13,2.2137]
[1717511607490,2.2132,167.18,167.14,2.2136]
[1717511607687,2.2132,167.18,167.13,2.2138]
[1717511608188,2.2133,167.17,167.13,2.2138]
[1717511608415,6.0236,167.18,167.1,2.3841]
[1717511608591,6.0236,167.18,167.11,2.214]
[1717511608791,6.0236,167.18,167.08,4.4289]
[1717511608792,2.2134,167.16,167.12,2.2139]
[1717511609322,2.2134,167.16,167.11,2.214]
[1717511609841,2.2135,167.15,167.11,2.214]
[1717511610024,2.2134,167.16,167.11,2.214]
[1717511610221,2.2133,167.17,167.12,2.2139]
[1717511610622,2.2133,167.17,167.13,2.2138]
[1717511610832,2.2132,167.18,167.14,2.2136]
[1717511611229,2.2132,167.18,167.13,2.2138]
[1717511612051,2.2135,167.16,167.11,2.214]
[1717511612849,2.2135,167.15,167.11,2.214]
[1717511613354,2.2134,167.16,167.12,2.2139]
[1717511614139,8.2271,167.16,167.12,2.2139]
[1717511616635,8.2271,167.16,167.11,2.214]
[1717511617029,2.2136,167.15,167.1,2.2141]
[1717511617221,8.7541,167.15,167.1,2.2141]
[1717511617842,8.7542,167.15,167.06,13.2882]
[1717511618045,2.2139,167.13,167.09,2.2143]
[1717511618262,8.7543,167.13,167.09,2.2143]
[1717511618544,6.5405,167.13,167.09,2.2143]
[1717511618854,6.5405,167.13,167.08,2.2144]
[1717511619156,2.214,167.12,167.07,2.2145]
[1717511619346,2.214,167.12,167.08,2.2145]
[1717511619519,2.214,167.12,167.03,15.5056]
[1717511619520,2.2142,167.1,167.05,2.2147]
[1717511619720,8.316,167.1,167.05,2.2147]
[1717511619968,6.1018,167.1,167.06,2.2146]
[1717511620117,6.1018,167.1,167.07,2.2146]
[1717511620620,2.214,167.12,167.07,2.2146]
[1717511620621,8.2458,167.12,167.07,2.2146]
[1717511621147,8.6579,167.11,167.06,2.2147]
[1717511621319,6.4438,167.11,167.07,2.2146]
[1717511621819,8.6579,167.11,167.06,2.2147]
[1717511622034,6.4438,167.11,167.07,2.2146]
[1717511622242,8.6579,167.11,167.07,2.2146]
[1717511623421,8.6579,167.11,167.06,2.2147]
[1717511623651,8.6579,167.11,167.07,2.2146]
[1717511624751,2.2141,167.11,167.07,2.2146]
[1717511625336,2.2139,167.13,167.08,2.2144]
[1717511625840,2.2139,167.13,167.09,2.2143]
[1717511626040,12.9372,167.16,167.07,2.2145]
[1717511626251,2.2141,167.11,167.07,2.2145]
[1717511626626,2.214,167.12,167.07,2.2145]
[1717511627348,2.2141,167.11,167.06,2.2147]
[1717511627528,2.2142,167.1,167.05,2.2148]
[1717511627932,6.1471,167.11,167.03,4.4302]
[1717511628131,6.1471,167.11,167.04,0.34]
[1717511628544,6.1471,167.11,167.07,2.2145]
[1717511628738,8.3612,167.11,167.07,2.2145]
[1717511629055,2.2142,167.1,167.05,2.2148]
[1717511629268,8.6267,167.1,167.05,2.2148]
[1717511630130,2.2143,167.09,167.04,2.215]
[1717511630534,6.4125,167.1,167.04,2.215]
[1717511630935,2.2144,167.09,167.04,2.215]
[1717511631233,6.0384,167.09,167.05,2.2149]
[1717511631435,8.2527,167.09,167.04,2.215]
[1717511632255,2.2148,167.06,167.01,2.2154]
[1717511632953,2.2148,167.06,166.97,4.4318]
[1717511633164,2.2146,167.07,167.02,2.2152]
[1717511633329,8.522,167.07,167.02,2.2152]
[1717511633945,6.3074,167.07,167.03,2.2151]
[1717511634152,6.2382,167.06,167.03,2.2151]
[1717511634733,6.2382,167.06,167.02,2.2152]
[1717511634951,2.2146,167.07,167.02,2.2152]
[1717511635136,2.2145,167.08,167.02,2.2152]
[1717511635527,2.2146,167.07,167.02,2.2152]
[1717511635750,2.2145,167.08,167.03,2.2151]
[1717511635943,8.2316,167.08,167.03,2.2151]
[1717511636932,2.2145,167.08,167.03,2.2151]
[1717511637856,6.1728,167.07,167.02,6.89]
[1717511638044,2.2147,167.06,167.01,9.1053]
[1717511638362,8.3875,167.06,167.01,2.2153]
[1717511639340,6.1728,167.06,167.02,2.2153]
[1717511639959,6.89,167.05,166.95,11.0807]
[1717511640158,6.89,167.02,166.96,6.89]
[1717511640479,2.2155,167.01,166.96,2.216]
[1717511640640,6.89,167.02,166.94,5.991]
[1717511640641,2.2156,167.0,166.95,2.2162]
[1717511640841,2.2156,167.0,166.95,9.1062]
[1717511641261,2.2156,167.0,166.94,5.991]
[1717511641262,4.4305,167.03,166.94,5.991]
[1717511641465,2.2157,166.99,166.94,5.991]
[1717511641763,15.434,167.0,166.94,8.2073]
[1717511641965,15.434,167.0,166.94,15.0973]
[1717511642167,13.2184,167.0,166.94,5.991]
[1717511642340,6.6082,166.97,166.94,5.991]
[1717511642545,8.8243,166.96,166.94,5.991]
[1717511642769,8.581,166.95,166.94,5.991]
[1717511642952,6.3648,166.95,166.94,5.991]
[1717511643651,8.581,166.95,166.94,5.991]
[1717511644461,6.157,166.94,166.9,5.991]
[1717511644657,2.2167,166.92,166.9,5.991]
[1717511644868,2.2167,166.91,166.9,5.991]
[1717511645062,2.217,166.9,166.84,0.823512]
[1717511645262,6.5765,166.91,166.84,0.823512]
[1717511645449,2.217,166.89,166.84,0.823512]
[1717511645843,8.7932,166.91,166.84,3.041112]
[1717511646450,2.2169,166.9,166.84,0.823512]
[1717511646667,8.7932,166.91,166.84,3.041112]
[1717511647249,2.2168,166.9,166.84,3.041112]
[1717511647470,8.4041,166.89,166.84,0.823512]
[1717511647770,2.2172,166.87,166.84,0.823512]
[1717511647943,6.1871,166.88,166.84,0.823512]
[1717511648449,16.3214,166.92,166.84,0.823512]
[1717511648656,2.2171,166.88,166.84,0.823512]
[1717511648959,6.4785,166.91,166.84,0.823512]
[1717511648960,2.217,166.89,166.84,0.823512]
[1717511649142,6.2811,166.88,166.84,0.823512]
[1717511649345,2.2173,166.87,166.84,0.823512]
[1717511649771,6.2811,166.88,166.84,0.823512]
[1717511650168,2.2169,166.9,166.84,0.823512]
[1717511650879,35.91,166.92,166.84,0.823512]
[1717511651042,8.4,166.85,166.84,0.823512]
[1717511651249,22.1886,166.85,166.71,34.0059]
[1717511651446,2.218,166.82,166.71,4.4388]
[1717511651873,22.1886,166.85,166.72,4.4384]
[1717511652167,22.1886,166.85,166.73,4.4382]
[1717511652168,6.1825,166.85,166.73,4.4382]
[1717511652677,2.2177,166.84,166.77,2.2186]
[1717511652971,2.2179,166.82,166.75,2.2188]
[1717511653360,2.218,166.81,166.75,2.2188]
[1717511653574,2.218,166.81,166.74,2.2189]
[1717511653952,2.2182,166.8,166.74,2.2189]
[1717511654753,2.2181,166.81,166.7,46.4734]
[1717511655081,2.2181,166.81,166.74,2.2189]
[1717511655380,2.2181,166.81,166.75,2.2188]
[1717511655772,2.2179,166.82,166.75,2.2188]
[1717511656072,6.1825,166.85,166.76,2.2187]
[1717511656266,6.1825,166.85,166.75,2.2188]
[1717511656462,2.2179,166.82,166.75,2.2188]
[1717511656676,2.2179,166.82,166.71,11.0965]
[1717511656677,2.2179,166.82,166.76,2.2186]
[1717511656891,6.1825,166.85,166.71,6.6579]
[1717511657048,2.2177,166.84,166.78,2.2184]
[1717511657249,2.2177,166.84,166.74,4.4379]
[1717511657555,6.1825,166.85,166.75,0.34]
[1717511657965,2.2177,166.84,166.78,2.2184]
[1717511658212,8.4,166.85,166.79,2.2183]
[1717511658473,2.2177,166.84,166.78,2.2184]
[1717511658774,6.1825,166.85,166.75,0.34]
[1717511658775,2.2178,166.83,166.77,2.2185]
[1717511658989,2.2177,166.84,166.78,2.2184]
[1717511659273,2.2177,166.84,166.79,2.2183]
[1717511659457,2.2177,166.84,166.78,2.2184]
[1717511660083,6.1825,166.85,166.74,4.4379]
[1717511660252,2.2178,166.83,166.74,4.4379]
[1717511660454,10.6176,166.85,166.75,2.2187]
[1717511660755,4.4356,166.83,166.73,2.2191]
[1717511661174,2.2184,166.79,166.74,2.2189]
[1717511661354,6.3401,166.79,166.74,2.2189]
[1717511661777,8.5584,166.79,166.74,2.2189]
[1717511661975,6.3401,166.79,166.74,2.2189]
[1717511662177,8.5584,166.79,166.74,2.2189]
[1717511662374,2.2183,166.79,166.74,2.2189]
[1717511662680,2.2185,166.78,166.73,2.2191]
[1717511663060,2.2186,166.77,166.72,2.2192]
[1717511663679,2.2185,166.78,166.72,2.2192]
[1717511663993,2.2184,166.79,166.68,7.482712]
[1717511664161,2.2184,166.79,166.73,2.219]
[1717511664879,2.2184,166.79,166.74,2.219]
[1717511665080,6.3157,166.8,166.74,2.219]
[1717511665081,8.5339,166.8,166.74,2.219]
[1717511665264,2.2185,166.78,166.7,4.4391]
[1717511665581,2.2184,166.79,166.73,2.2191]
[1717511666561,6.4605,166.81,166.72,4.4385]
[1717511666562,8.6786,166.81,166.72,4.4385]
[1717511666764,8.6786,166.81,166.75,2.2187]
[1717511666979,6.6092,166.78,166.68,5.262812]
[1717511667160,8.4384,166.77,166.72,2.2192]
[1717511667360,6.2198,166.77,166.73,2.2191]
[1717511667569,8.4384,166.77,166.71,2.2193]
[1717511667790,2.2184,166.79,166.73,2.219]
[1717511668094,6.2066,166.78,166.74,2.219]
[1717511668388,6.2066,166.78,166.73,2.2191]
[1717511668560,2.2184,166.79,166.73,2.2191]
[1717511669183,2.2184,166.79,166.74,2.2189]
[1717511669569,8.7917,166.79,166.73,2.2191]
[1717511669792,2.2185,166.78,166.72,2.2192]
[1717511670483,2.2186,166.77,166.71,2.2193]
[1717511670862,6.5733,166.79,166.71,2.2193]
[1717511671057,6.5733,166.79,166.72,2.2192]
[1717511671058,2.2185,166.78,166.72,2.2192]
[1717511673287,6.5733,166.79,166.72,2.2192]
[1717511673476,2.2186,166.77,166.72,2.2192]
[1717511673676,2.2185,166.78,166.72,2.2192]
[1717511673878,2.2186,166.77,166.72,2.2192]
[1717511674177,2.2187,166.76,166.71,2.2193]
[1717511674386,11.0102,166.79,166.69,2.2196]
[1717511674570,2.2189,166.75,166.69,2.2196]
[1717511675166,15.42001186,166.79,166.68,0.823512]
[1717511675384,6.4023,166.73,166.68,3.043312]
[1717511675582,8.6214,166.73,166.68,3.043312]
[1717511675791,6.4023,166.73,166.68,3.043312]
[1717511676972,8.6214,166.73,166.68,3.043212]
[1717511677581,6.4023,166.73,166.68,3.043212]
[1717511678302,6.4023,166.73,166.68,0.823512]
[1717511678594,2.2194,166.71,166.68,0.823512]
[1717511678891,2.2193,166.72,166.68,0.823512]
[1717511679095,2.2194,166.71,166.68,0.823512]
[1717511679474,2.2193,166.72,166.68,0.823512]
[1717511680196,8.6214,166.73,166.68,0.823512]
[1717511680395,22.0392,166.77,166.68,0.823512]
[1717511680724,2.219,166.74,166.69,2.2196]
[1717511681201,2.2189,166.75,166.69,2.2196]
[1717511681383,6.0213,166.77,166.69,2.2196]
[1717511681384,2.219,166.74,166.69,2.2196]
[1717511681775,2.2189,166.75,166.7,2.2195]
[1717511682094,6.0213,166.77,166.7,2.2195]
[1717511682095,2.2188,166.76,166.7,2.2195]
[1717511682304,2.2188,166.76,166.68,0.823512]
[1717511682595,2.402297,166.79,166.69,0.34]
[1717511682796,2.2187,166.76,166.71,2.2194]
[1717511682980,2.2187,166.76,166.7,2.2195]
[1717511683981,2.2186,166.77,166.71,2.2194]
[1717511685081,2.2186,166.77,166.72,2.2192]
[1717511685803,2.2186,166.77,166.71,2.2193]
[1717511686891,2.2187,166.76,166.7,2.2195]
[1717511687212,2.2187,166.76,166.71,2.2194]
[1717511687583,4.4364,166.8,166.71,2.2194]
[1717511687801,2.2187,166.77,166.71,2.2194]
[1717511688594,2.2187,166.76,166.71,2.2194]
[1717511688807,2.2187,166.76,166.71,2.2193]
[1717511689107,2.2188,166.75,166.7,8.2888]
[1717511689304,2.2188,166.76,166.7,8.2888]
[1717511689518,2.2188,166.76,166.71,2.2194]
[1717511689888,2.2188,166.76,166.73,6.91]
[1717511690088,2.2186,166.77,166.73,6.91]
[1717511692411,2.2186,166.77,166.74,6.91]
[1717511692799,2.2185,166.78,166.74,6.91]
[1717511692998,2.2185,166.78,166.73,2.3891]
[1717511693311,2.2185,166.78,166.74,6.91]
[1717511693506,2.2186,166.77,166.74,6.91]
[1717511693720,2.2186,166.77,166.73,13.0481]
[1717511694015,2.2186,166.77,166.73,6.91]
[1717511694214,2.2184,166.79,166.76,6.91]
[1717511694423,2.2184,166.79,166.75,6.91]
[1717511694602,2.2185,166.78,166.75,6.91]
[1717511695331,2.2184,166.79,166.75,6.91]
[1717511695621,2.2183,166.79,166.75,6.91]
[1717511696222,2.2185,166.78,166.75,6.91]
[1717511696424,12.79160075,166.82,166.76,6.91]
[1717511696425,2.2182,166.8,166.76,6.91]
[1717511697222,11.346,166.82,166.76,6.91]
[1717511697417,2.2184,166.79,166.76,6.91]
[1717511697609,2.2182,166.8,166.76,6.91]
[1717511697816,2.2182,166.8,166.77,6.91]
[1717511698017,2.2183,166.79,166.77,6.91]
[1717511698330,2.2183,166.79,166.76,6.91]
[1717511698822,2.2183,166.79,166.77,6.91]
[1717511699208,11.26988965,166.84,166.78,6.91]
[1717511699423,8.8694,166.87,166.81,6.91]
[1717511699424,2.2179,166.82,166.81,6.91]
[1717511699724,2.2178,166.83,166.81,6.91]
[1717511700022,13.304,166.87,166.81,6.91]
[1717511700328,4.4346,166.87,166.82,6.91]
[1717511700506,2.2178,166.83,166.82,6.91]
[1717511700824,2.2174,166.86,166.82,6.91]
[1717511701007,2.2175,166.85,166.83,6.91]
[1717511701322,2.2174,166.86,166.84,6.91]
[1717511702633,2.2174,166.86,166.85,6.91]
[1717511703619,2.2175,166.85,166.8,8.3085]
[1717511703821,2.2179,166.82,166.77,2.2186]
[1717511704026,2.218,166.81,166.79,6.91]
[1717511704610,2.218,166.81,166.76,6.0904]
[1717511704819,2.218,166.81,166.78,6.91]
[1717511705009,2.218,166.81,166.76,2.2187]
[1717511705210,6.6524,166.86,166.78,6.91]
[1717511705211,2.2179,166.82,166.78,6.91]
[1717511705406,2.2181,166.81,166.75,2.2187]
[1717511705614,2.2181,166.81,166.78,6.91]
[1717511705813,2.2181,166.81,166.76,2.2186]
[1717511706144,2.2181,166.81,166.77,6.91]
[1717511706336,2.218,166.82,166.77,2.2186]
[1717511706643,2.218,166.82,166.79,6.91]
[1717511706809,2.2177,166.84,166.8,6.91]
[1717511707016,2.2177,166.84,166.81,6.91]
[1717511707533,2.2178,166.83,166.78,2.2184]
[1717511707731,2.2178,166.83,166.8,6.91]
[1717511707918,2.2177,166.84,166.78,8.2187]
[1717511708311,2.2176,166.85,166.79,6.8607]
[1717511708516,2.2177,166.84,166.79,9.079]
[1717511708820,2.2178,166.83,166.79,6.8607]
[1717511709007,2.2178,166.83,166.79,0.34]
[1717511709214,2.2181,166.81,166.76,2.2186]
[1717511709425,2.218,166.82,166.77,2.2186]
[1717511709626,2.13688628,166.82,166.77,2.2186]
[1717511709818,2.2181,166.81,166.76,2.2187]
[1717511710744,2.2183,166.8,166.74,2.2189]
[1717511710926,2.2184,166.79,166.73,6.5826]
[1717511711124,6.6536,166.83,166.73,8.8016]
[1717511711303,6.6536,166.83,166.7,15.248]
[1717511711304,4.4362,166.81,166.72,2.2191]
[1717511711508,4.4362,166.81,166.73,2.2191]
[1717511711509,2.2185,166.78,166.73,2.2191]
[1717511711710,2.2183,166.79,166.74,2.2189]
[1717511712009,2.2182,166.8,166.75,2.2188]
[1717511712209,2.2183,166.79,166.74,2.2189]
[1717511712417,2.2182,166.8,166.75,2.2188]
[1717511712827,6.6536,166.83,166.74,2.2189]
[1717511713025,6.6536,166.83,166.71,4.4388]
[1717511713026,2.2181,166.81,166.76,2.2187]
[1717511713251,2.2182,166.8,166.75,2.2188]
[1717511713749,4.4356,166.84,166.73,0.34]
[1717511713750,2.2184,166.79,166.74,2.219]
[1717511714619,2.2182,166.8,166.75,2.2188]
[1717511715210,2.2181,166.81,166.76,8.8383]
[1717511715416,2.2182,166.8,166.76,8.4983]
[1717511716140,2.2181,166.81,166.76,8.4983]
[1717511716516,2.2182,166.8,166.76,6.2797]
[1717511716907,2.2182,166.8,166.76,8.4984]
[1717511717111,2.2183,166.79,166.75,0.34]
[1717511717313,2.2183,166.79,166.75,0.17]
[1717511717536,4.436,166.82,166.75,2.3888]
[1717511717737,2.2183,166.79,166.75,0.17]
[1717511717909,2.2183,166.79,166.74,2.3889]
[1717511718115,2.2183,166.79,166.74,2.2189]
[1717511718330,2.2183,166.79,166.75,2.2188]
[1717511718524,2.2183,166.79,166.74,2.2189]
[1717511719020,2.2183,166.79,166.75,2.2188]
[1717511719220,2.2183,166.79,166.74,2.2189]
[1717511719641,2.2185,166.78,166.74,2.2189]
[1717511719830,2.2184,166.79,166.74,2.2189]
[1717511720331,2.2184,166.78,166.74,2.2189]
[1717511720644,2.2186,166.77,166.72,8.4989]
[1717511720941,2.2188,166.76,166.71,2.2194]
[1717511721244,4.4367,166.79,166.68,7.216912]
[1717511721541,2.2188,166.76,166.71,2.2193]
[1717511722640,2.2189,166.75,166.7,2.3895]
[1717511723143,4.4374,166.77,166.69,2.2196]
[1717511723539,2.219,166.74,166.69,2.2196]
[1717511724145,2.2189,166.75,166.7,2.2195]
[1717511724450,2.2187,166.77,166.71,2.2193]
[1717511724657,2.2187,166.77,166.72,2.2192]
[1717511725029,2.2187,166.77,166.68,11.656512]
[1717511725030,2.2187,166.76,166.71,2.2193]
[1717511725364,2.2186,166.77,166.72,2.2192]
[1717511725655,2.2187,166.76,166.71,2.2193]
[1717511726164,2.2188,166.76,166.71,2.2194]
[1717511727756,4.4367,166.79,166.7,2.2195]
[1717511727757,2.2189,166.75,166.7,2.2195]
[1717511728323,2.219,166.74,166.69,2.2196]
[1717511729531,6.6563,166.76,166.68,0.823512]
[1717511729740,2.2193,166.72,166.68,0.823512]
[1717511730128,2.2191,166.73,166.68,3.043312]
[1717511730848,2.2193,166.72,166.68,3.043312]
[1717511731058,20.71,166.8,166.68,0.823512]
[1717511731259,2.2194,166.71,166.68,0.823512]
[1717511731439,2.2193,166.72,166.68,0.823512]
[1717511732448,2.2194,166.71,166.68,0.823512]
[1717511732750,2.2196,166.7,166.68,0.823512]
[1717511733347,2.2196,166.69,166.68,0.823512]
[1717511733531,2.2195,166.7,166.68,0.823512]
[1717511733854,2.2196,166.69,166.68,0.823512]
[1717511742458,2.2195,166.7,166.68,0.823512]
[1717511742759,4.4385,166.72,166.68,0.823512]
[1717511742961,2.2196,166.69,166.68,0.823512]
[1717511743971,9.1396,166.69,166.68,0.823512]
[1717511744181,2.2196,166.69,166.68,0.823512]
[1717511748949,2.2196,166.7,166.68,0.823512]
[1717511749174,9.1394,166.71,166.68,0.823512]
[1717511749580,2.2196,166.7,166.68,0.823512]
[1717511750068,2.2194,166.71,166.68,0.823512]
[1717511750570,9.139,166.74,166.69,2.2196]
[1717511750746,2.2192,166.73,166.68,7.033712]
[1717511750943,19.44820075,166.78,166.68,13.953712]
[1717511751148,9.139,166.75,166.7,8.4296]
[1717511751565,2.219,166.75,166.71,2.2193]
[1717511751876,2.219,166.75,166.71,8.8245]
[1717511752049,11.470712,166.78,166.72,6.5932]
[1717511752050,6.92,166.77,166.72,6.5932]
[1717511752250,2.2189,166.75,166.72,6.5932]
[1717511752459,2.219,166.74,166.72,6.5932]
[1717511752979,2.2192,166.73,166.69,0.17]
[1717511753175,2.2192,166.73,166.69,2.2196]
[1717511753352,2.2192,166.73,166.68,9.324012]
[1717511753683,9.1394,166.72,166.68,7.104312]
[1717511753866,2.2195,166.71,166.68,0.823512]
[1717511754257,9.1393,166.72,166.68,0.823512]
[1717511755259,2.2194,166.71,166.68,0.823512]
[1717511756271,9.1396,166.69,166.68,0.823512]
[1717511756572,6.92,166.69,166.68,0.823512]
[1717511756773,6.92,166.7,166.68,0.823512]
[1717511757756,2.2194,166.71,166.68,0.823512]
[1717511758063,6.92,166.72,166.68,3.043312]
[1717511758277,2.2192,166.73,166.68,3.043312]
[1717511758463,9.139,166.74,166.69,8.6608]
[1717511758664,2.2191,166.73,166.69,6.4412]
[1717511759057,2.2194,166.71,166.68,0.823512]
[1717511760278,2.2193,166.72,166.68,7.091812]
[1717511760663,2.2194,166.71,166.68,7.091812]
[1717511760962,2.2194,166.71,166.68,0.823512]
[1717511761689,2.2193,166.72,166.68,0.823512]
[1717511762470,4.4381,166.74,166.68,0.823512]
[1717511762785,2.2195,166.71,166.68,0.823512]
[1717511763373,2.2195,166.7,166.68,0.823512]
[1717511764456,2.2196,166.69,166.68,0.823512]
[1717511767059,6.6589,166.69,166.68,0.823512]
[1717511767859,12.9418,166.69,166.68,0.823512]
[1717511768061,28.4795,166.69,166.68,0.823512]
[1717511768371,2.2206,166.62,166.56,2.2213]
[1717511768893,2.2207,166.61,166.55,8.3834]
[1717511769186,2.2206,166.62,166.56,2.2213]
[1717511769389,2.2208,166.61,166.55,6.1619]
[1717511769602,4.4407,166.64,166.55,8.3834]
[1717511769892,2.2208,166.6,166.55,6.1619]
[1717511770196,15.541,166.66,166.52,2.2218]
[1717511770197,2.221,166.59,166.52,2.2218]
[1717511770409,4.441,166.63,166.52,2.2218]
[1717511770694,2.2211,166.59,166.53,2.2217]
[1717511771262,20.75,166.64,166.51,24.037612]
[1717511771694,2.221,166.6,166.54,2.2216]
[1717511771989,2.221,166.59,166.53,2.2217]
[1717511772397,2.2211,166.58,166.53,2.2217]
[1717511772581,2.221,166.59,166.53,2.2217]
[1717511772765,2.221,166.59,166.54,2.2216]
[1717511773680,2.2209,166.6,166.55,2.2215]
[1717511773986,2.2209,166.6,166.55,8.6836]
[1717511774188,2.221,166.59,166.55,6.2921]
[1717511774765,4.4407,166.64,166.55,8.5136]
[1717511775603,2.2208,166.61,166.55,6.2921]
[1717511775773,2.2209,166.6,166.56,0.17]
[1717511775972,2.2208,166.61,166.56,2.2214]
[1717511776792,2.2208,166.6,166.55,8.5135]
[1717511777079,2.2208,166.6,166.56,2.3914]
[1717511777898,2.2208,166.6,166.56,0.17]
[1717511778095,2.2208,166.6,166.55,8.5135]
[1717511778399,11.1035,166.62,166.53,2.3917]
[1717511778580,2.2213,166.57,166.52,8.3846]
[1717511778780,11.1045,166.6,166.51,0.823512]
[1717511778975,4.4417,166.6,166.51,0.823512]
[1717511779201,2.2212,166.58,166.51,22.054012]
[1717511779399,2.2212,166.58,166.54,2.2216]
[1717511779697,2.221,166.59,166.54,2.2216]
[1717511779871,2.2211,166.58,166.54,2.2216]
[1717511780070,11.1033,166.62,166.54,2.2216]
[1717511780481,2.221,166.59,166.54,2.2216]
[1717511780701,4.4415,166.61,166.54,2.2216]
[1717511780995,2.2211,166.59,166.54,2.2216]
[1717511781300,2.2212,166.58,166.53,2.2217]
[1717511781509,2.2212,166.58,166.53,8.8462]
[1717511781697,2.2212,166.57,166.53,8.8462]
[1717511781898,2.2212,166.57,166.54,6.6245]
[1717511782077,6.93,166.59,166.54,6.6245]
[1717511782283,4.4415,166.61,166.54,8.8461]
[1717511782476,9.1511,166.59,166.54,8.8461]
[1717511782673,6.93,166.59,166.54,8.8461]
[1717511783002,2.221,166.59,166.54,8.8461]
[1717511783308,2.2211,166.58,166.54,8.8461]
[1717511783603,2.2208,166.61,166.55,13.3889]
[1717511783803,9.1508,166.61,166.56,2.2213]
[1717511784004,9.151,166.6,166.55,6.6289]
[1717511784210,2.221,166.59,166.55,6.6289]
[1717511784403,2.2211,166.58,166.55,6.6289]
[1717511784603,2.2211,166.58,166.55,6.4589]
[1717511784816,9.151,166.59,166.55,6.4589]
[1717511784989,15.5625,166.61,166.51,0.823512]
[1717511785188,2.2219,166.52,166.51,0.823512]
[1717511785392,9.1519,166.52,166.51,0.823512]
[1717511785986,4.4431,166.55,166.51,0.823512]
[1717511785987,2.2218,166.53,166.51,0.823512]
[1717511787722,2.2219,166.53,166.51,0.823512]
[1717511788005,2.2219,166.52,166.51,0.823512]
[1717511789491,2.2218,166.53,166.51,0.823512]
[1717511790290,2.2219,166.52,166.51,0.823512]
[1717511793108,6.6658,166.52,166.51,0.823512]
[1717511793892,2.2219,166.52,166.51,0.823512]
[1717511798616,2.2217,166.54,166.51,0.823512]
[1717511799029,2.2216,166.55,166.51,0.823512]
[1717511799339,12.05462477,166.6,166.52,2.2219]
[1717511799340,2.2213,166.57,166.52,2.2219]
[1717511799504,34.1248,166.61,166.52,2.2219]
[1717511799505,2.2211,166.58,166.53,2.2218]
[1717511799699,2.2211,166.58,166.53,8.5352]
[1717511800222,2.2213,166.57,166.53,6.3134]
[1717511800523,2.2212,166.58,166.54,2.2216]
[1717511800737,2.2212,166.58,166.54,6.2058]
[1717511800901,4.4411,166.63,166.55,2.3914]
[1717511801224,2.221,166.59,166.55,6.3758]
[1717511801521,2.2209,166.6,166.55,8.5973]
[1717511802048,33.59874561,166.65,166.55,0.17]
[1717511802194,2.2207,166.62,166.57,8.6305]
[1717511802401,2.2206,166.62,166.58,6.4093]